fUSD/lending_fUSD_20250514
["ID","MTS","AMOUNT","RATE_DAILY","PERIOD"]
[361009522,1747200646764,-401.01031783,0.00010958,2]
[361009523,1747200646780,-402.51836474,0.00010958,2]
[361009524,1747200646796,-5688.4152917,0.00010993,2]
[361009525,1747200646821,-251.5847083,0.00010993,2]
[361009526,1747200646837,-37358.95155165,0.00011,2]
[361009527,1747200646852,-5302.87023002,0.00011,2]
[361009528,1747200646939,-472.94017247,0.00011,2]
[361009529,1747200646954,-133256.32902592,0.00011,2]
[361009530,1747200646974,-223616.8786916,0.00011,2]
[361009531,1747200647904,-427.270001,0.00010958,2]
[361009532,1747200647914,-1483.729999,0.00011,2]
[361009533,1747200647926,-2195.572128,0.00011,2]
[361009534,1747200647937,-8153.96839183,0.00011,2]
[361009535,1747200647954,-5443.9824756,0.00011,2]
[361009536,1747200647965,-5330.8,0.00011,2]
[361009537,1747200647980,-230136.5282537,0.00011,2]
[361009538,1747200647996,-514.15484806,0.00011,2]
[361009539,1747200648007,-1528.87515665,0.00011,2]
[361009541,1747200831643,190.44,9.981e-05,2]
[361009542,1747201005490,150.0,0.000251,120]
[361009543,1747201394656,450.0,0.0001,2]
[361009544,1747201510134,1000.0,9.995e-05,2]
[361009545,1747201513927,2000.0,0.00021,90]
[361009546,1747201523831,150.0,9.995e-05,7]
[361009547,1747201612264,890.56,0.00013,10]
[361009560,1747201831967,-175.51,0.00010032,2]
[361009561,1747201831977,-200.0,0.00010055,2]
[361009562,1747201831987,-466.89,0.00010191,2]
[361009563,1747201831997,-150.0,0.00010857,2]
[361009564,1747201832007,-300.0,0.00010857,2]
[361009565,1747201832018,-300.0,0.00010857,2]
[361009566,1747201832027,-513.22907341,0.00010858,2]
[361009567,1747201832037,-24138.7596,0.00010858,2]
[361009568,1747201832046,-3745.989,0.00010858,2]
[361009569,1747201832055,-727.7378,0.00010858,2]
[361009570,1747201832065,-2500.0,0.00010858,2]
[361009571,1747201832074,-2652.40753257,0.000109,2]
[361009572,1747201832110,-6083.59926743,0.000109,2]
[361009573,1747201832119,-225.07236312,0.000109,2]
[361009574,1747201832129,-187.08023611,0.000109,2]
[361009575,1747201832341,-647.615086,0.000109,2]
[361009576,1747201832356,-200.9227974,0.00010944,2]
[361009577,1747201832365,-151.0,0.00010951,2]
[361009578,1747201832374,-668.65185757,0.00010951,2]
[361009579,1747201832383,-287.61899177,0.00010951,2]
[361009580,1747201832393,-207.4,0.00010951,2]
[361009581,1747201832405,-2066.97130506,0.00010957,2]
[361009582,1747201832417,-200.48483952,0.00010958,2]
[361009583,1747201832426,-229.30776169,0.00010958,2]
[361009584,1747201832435,-400.0,0.00010958,2]
[361009585,1747201832444,-400.0,0.00010958,2]
[361009586,1747201832454,-594.16019345,0.00010958,2]
[361009587,1747201832465,-177.78980655,0.00010958,2]
[361009588,1747201832474,-444.58,0.00010958,2]
[361009589,1747201832483,-457.60448004,0.00010958,2]
[361009590,1747201832494,-400.0,0.00010958,2]
[361009591,1747201832503,-400.0,0.00010958,2]
[361009592,1747201832512,-400.0,0.00010958,2]
[361009593,1747201832522,-400.0,0.00010958,2]
[361009594,1747201832531,-400.0,0.00010958,2]
[361009595,1747201832540,-400.0,0.00010958,2]
[361009596,1747201832549,-400.0,0.00010958,2]
[361009597,1747201832559,-400.0,0.00010958,2]
[361009598,1747201832568,-445.95,0.00010958,2]
[361009599,1747201832577,-400.0,0.00010958,2]
[361009600,1747201832586,-400.0,0.00010958,2]
[361009601,1747201832596,-400.0,0.00010958,2]
[361009602,1747201832605,-174.07571331,0.00010958,2]
[361009603,1747201832618,-582.18428669,0.00010958,2]
[361009604,1747201832627,-287.37174493,0.00010958,2]
[361009605,1747201832636,-400.0,0.00010958,2]
[361009606,1747201832645,-400.0,0.00010958,2]
[361009607,1747201832655,-400.0,0.00010958,2]
[361009608,1747201832664,-525.99,0.00010958,2]
[361009609,1747201832673,-400.0,0.00010958,2]
[361009610,1747201832683,-400.0,0.00010958,2]
[361009611,1747201832692,-400.0,0.00010958,2]
[361009612,1747201832701,-400.0,0.00010958,2]
[361009613,1747201832713,-400.0,0.00010958,2]
[361009614,1747201832725,-400.0,0.00010958,2]
[361009615,1747201832734,-608.91,0.00010958,2]
[361009616,1747201832744,-275.54396838,0.00010958,2]
[361009617,1747201832758,-124.45603162,0.00010958,2]
[361009618,1747201832767,-682.23,0.00010958,2]
[361009619,1747201832777,-400.0,0.00010958,2]
[361009620,1747201832786,-400.0,0.00010958,2]
[361009621,1747201832795,-834.48,0.00010958,2]
[361009622,1747201832804,-400.0,0.00010958,2]
[361009623,1747201832813,-403.65,0.00010958,2]
[361009624,1747201832822,-305.18397338,0.00010958,2]
[361009625,1747201832834,-94.81602662,0.00010958,2]
[361009626,1747201832845,-400.0,0.00010958,2]
[361009627,1747201832855,-400.0,0.00010958,2]
[361009628,1747201832864,-400.0,0.00010958,2]
[361009629,1747201832874,-5.18397338,0.00010958,2]
[361009630,1747201832885,-394.81602662,0.00010958,2]
[361009631,1747201832895,-411.20107594,0.00010958,2]
[361009632,1747201832904,-141.2732545,0.00010958,2]
[361009633,1747201832942,-277.11221179,0.00010958,2]
[361009634,1747201832952,-144.70228647,0.00010958,2]
[361009635,1747201832964,-255.29771353,0.00010958,2]
[361009636,1747201832973,-400.0,0.00010958,2]
[361009637,1747201832984,-529.84,0.00010958,2]
[361009638,1747201832994,-400.0,0.00010958,2]
[361009639,1747201833003,-400.0,0.00010958,2]
[361009640,1747201833013,-404.3140882,0.00010958,2]
[361009641,1747201833022,-446.83935704,0.00010958,2]
[361009642,1747201833032,-400.0,0.00010958,2]
[361009643,1747201833041,-194.57057379,0.00010958,2]
[361009644,1747201833053,-268.82942621,0.00010958,2]
[361009645,1747201833063,-400.0,0.00010958,2]
[361009646,1747201833072,-402.75150569,0.00010958,2]
[361009647,1747201833082,-523.03,0.00010958,2]
[361009648,1747201833092,-400.0,0.00010958,2]
[361009649,1747201833101,-592.69,0.00010958,2]
[361009650,1747201833111,-727.88,0.00010958,2]
[361009651,1747201833121,-516.47363816,0.00010958,2]
[361009652,1747201833131,-522.75367661,0.00010958,2]
[361009653,1747201833140,-400.0,0.00010958,2]
[361009654,1747201833149,-178.76685919,0.00010958,2]
[361009655,1747201833159,-332.21720012,0.00010958,2]
[361009656,1747201833168,-381.44,0.00010958,2]
[361009657,1747201833177,-400.0,0.00010958,2]
[361009658,1747201833187,-400.0,0.00010958,2]
[361009659,1747201833197,-400.0,0.00010958,2]
[361009660,1747201833206,-410.03589641,0.00010958,2]
[361009661,1747201833215,-246.76081434,0.00010958,2]
[361009662,1747201833228,-153.23918566,0.00010958,2]
[361009663,1747201833237,-400.0,0.00010958,2]
[361009664,1747201833246,-21.05623322,0.00010958,2]
[361009665,1747201833380,-382.40996887,0.00010958,2]
[361009666,1747201833389,-400.0,0.00010958,2]
[361009667,1747201833399,-400.0,0.00010958,2]
[361009668,1747201833409,-400.0,0.00010958,2]
[361009669,1747201833425,-400.0,0.00010958,2]
[361009670,1747201833435,-400.0,0.00010958,2]
[361009671,1747201833445,-400.0,0.00010958,2]
[361009672,1747201833454,-400.0,0.00010958,2]
[361009673,1747201833465,-410.87,0.00010958,2]
[361009674,1747201833474,-400.0,0.00010958,2]
[361009675,1747201833484,-843.55,0.00010958,2]
[361009676,1747201833494,-400.0,0.00010958,2]
[361009677,1747201833505,-400.0,0.00010958,2]
[361009678,1747201833515,-400.0,0.00010958,2]
[361009679,1747201833524,-400.0,0.00010958,2]
[361009680,1747201833534,-400.0,0.00010958,2]
[361009681,1747201833543,-748.59,0.00010958,2]
[361009682,1747201833552,-715.43,0.00010958,2]
[361009683,1747201833561,-400.0,0.00010958,2]
[361009684,1747201833571,-514.37873448,0.00010958,2]
[361009685,1747201833585,-413.33,0.00010958,2]
[361009686,1747201833597,-427.64,0.00010958,2]
[361009687,1747201833606,-453.88,0.00010958,2]
[361009688,1747201833616,-400.0,0.00010958,2]
[361009689,1747201833626,-400.0,0.00010958,2]
[361009690,1747201833636,-400.0,0.00010958,2]
[361009691,1747201833645,-400.0,0.00010958,2]
[361009692,1747201833656,-704.48,0.00010958,2]
[361009693,1747201833666,-400.0,0.00010958,2]
[361009694,1747201833675,-400.0,0.00010958,2]
[361009695,1747201833685,-400.0,0.00010958,2]
[361009696,1747201833695,-1478.54,0.00010958,2]
[361009697,1747201833707,-400.0,0.00010958,2]
[361009698,1747201833717,-457.22,0.00010958,2]
[361009699,1747201833726,-400.0,0.00010958,2]
[361009700,1747201833735,-400.0,0.00010958,2]
[361009701,1747201833745,-400.0,0.00010958,2]
[361009702,1747201833755,-400.0,0.00010958,2]
[361009703,1747201833765,-400.0,0.00010958,2]
[361009704,1747201833775,-400.0,0.00010958,2]
[361009705,1747201833785,-400.0,0.00010958,2]
[361009706,1747201833795,-513.82504786,0.00010958,2]
[361009707,1747201833805,-400.0,0.00010958,2]
[361009708,1747201833815,-490.27,0.00010958,2]
[361009709,1747201833825,-400.0,0.00010958,2]
[361009710,1747201833835,-400.0,0.00010958,2]
[361009711,1747201833847,-152.49437004,0.00010958,2]
[361009712,1747201833857,-400.0,0.00010958,2]
[361009713,1747201833867,-400.0,0.00010958,2]
[361009714,1747201833877,-400.0,0.00010958,2]
[361009715,1747201833887,-191.56619475,0.00010958,2]
[361009716,1747201833897,-400.0,0.00010958,2]
[361009717,1747201833906,-400.0,0.00010958,2]
[361009718,1747201833916,-400.0,0.00010958,2]
[361009719,1747201833925,-400.0,0.00010958,2]
[361009720,1747201833935,-500.0,0.00010958,2]
[361009721,1747201833945,-500.0,0.00010958,2]
[361009722,1747201833954,-695.45,0.00010958,2]
[361009723,1747201833964,-400.0,0.00010958,2]
[361009724,1747201833974,-400.0,0.00010958,2]
[361009725,1747201833983,-385.1318562,0.00010958,2]
[361009726,1747201833996,-400.0,0.00010958,2]
[361009727,1747201834005,-1478.72,0.00010958,2]
[361009728,1747201834015,-400.0,0.00010958,2]
[361009729,1747201834025,-400.0,0.00010958,2]
[361009730,1747201834035,-712.54,0.00010958,2]
[361009731,1747201834044,-1226.64,0.00010958,2]
[361009732,1747201834054,-400.0,0.00010958,2]
[361009733,1747201834064,-400.0,0.00010958,2]
[361009734,1747201834073,-400.0,0.00010958,2]
[361009735,1747201834083,-400.0,0.00010958,2]
[361009736,1747201834094,-400.0,0.00010958,2]
[361009737,1747201834103,-400.0,0.00010958,2]
[361009738,1747201834114,-1275.42,0.00010958,2]
[361009739,1747201834123,-552.62,0.00010958,2]
[361009740,1747201834133,-400.0,0.00010958,2]
[361009741,1747201834143,-2783.0,0.00010958,2]
[361009742,1747201834153,-172.74,0.00010958,2]
[361009743,1747201834163,-972.12,0.00010958,2]
[361009744,1747201834173,-400.0,0.00010958,2]
[361009745,1747201834182,-400.0,0.00010958,2]
[361009746,1747201834192,-400.0,0.00010958,2]
[361009747,1747201834201,-756.74,0.00010958,2]
[361009748,1747201834211,-999.72,0.00010958,2]
[361009749,1747201834220,-400.0,0.00010958,2]
[361009750,1747201834230,-400.0,0.00010958,2]
[361009751,1747201834241,-1257.84,0.00010958,2]
[361009752,1747201834258,-635.0,0.00010958,2]
[361009753,1747201834268,-928.34,0.00010958,2]
[361009754,1747201834278,-416.76,0.00010958,2]
[361009755,1747201834287,-400.0,0.00010958,2]
[361009756,1747201834297,-400.0,0.00010958,2]
[361009757,1747201834306,-400.0,0.00010958,2]
[361009758,1747201834316,-1152.74,0.00010958,2]
[361009759,1747201834325,-719.09,0.00010958,2]
[361009760,1747201834335,-400.0,0.00010958,2]
[361009761,1747201834345,-400.0,0.00010958,2]
[361009762,1747201834355,-400.0,0.00010958,2]
[361009763,1747201834364,-459.45,0.00010958,2]
[361009764,1747201834374,-467.08,0.00010958,2]
[361009765,1747201834383,-400.0,0.00010958,2]
[361009766,1747201834393,-400.0,0.00010958,2]
[361009767,1747201834403,-400.0,0.00010958,2]
[361009768,1747201834415,-400.0,0.00010958,2]
[361009769,1747201834424,-400.0,0.00010958,2]
[361009770,1747201834434,-400.0,0.00010958,2]
[361009771,1747201834443,-400.0,0.00010958,2]
[361009772,1747201834453,-358.0,0.00010958,2]
[361009773,1747201834463,-400.0,0.00010958,2]
[361009774,1747201834473,-400.0,0.00010958,2]
[361009775,1747201834483,-591.85,0.00010958,2]
[361009776,1747201834495,-400.0,0.00010958,2]
[361009777,1747201834507,-400.0,0.00010958,2]
[361009778,1747201834520,-400.0,0.00010958,2]
[361009779,1747201834530,-457.54,0.00010958,2]
[361009780,1747201834539,-602.13,0.00010958,2]
[361009781,1747201834549,-698.03,0.00010958,2]
[361009782,1747201834560,-436.74,0.00010958,2]
[361009783,1747201834570,-400.0,0.00010958,2]
[361009784,1747201834580,-478.3,0.00010958,2]
[361009785,1747201834589,-400.0,0.00010958,2]
[361009786,1747201834600,-537.54,0.00010958,2]
[361009787,1747201834610,-400.0,0.00010958,2]
[361009788,1747201834621,-951.58,0.00010958,2]
[361009789,1747201834631,-743.99,0.00010958,2]
[361009790,1747201834641,-400.0,0.00010958,2]
[361009791,1747201834651,-416.23,0.00010958,2]
[361009792,1747201834660,-400.0,0.00010958,2]
[361009793,1747201834670,-290.01278292,0.00010958,2]
[361009794,1747201834681,-400.0,0.00010958,2]
[361009795,1747201834691,-2242.49,0.00010958,2]
[361009796,1747201834702,-432.44919015,0.00010958,2]
[361009797,1747201834712,-400.0,0.00010958,2]
[361009798,1747201834722,-400.0,0.00010958,2]
[361009799,1747201834893,-400.0,0.00010958,2]
[361009800,1747201834903,-524.77967298,0.00010958,2]
[361009801,1747201834912,-420.09,0.00010958,2]
[361009802,1747201834922,-400.0,0.00010958,2]
[361009803,1747201834932,-1005.56,0.00010958,2]
[361009804,1747201834942,-400.0,0.00010958,2]
[361009805,1747201834952,-400.0,0.00010958,2]
[361009806,1747201834963,-400.0,0.00010958,2]
[361009807,1747201834973,-400.0,0.00010958,2]
[361009808,1747201834982,-771.15,0.00010958,2]
[361009809,1747201834991,-400.0,0.00010958,2]
[361009810,1747201835002,-1321.29,0.00010958,2]
[361009811,1747201835012,-400.0,0.00010958,2]
[361009812,1747201835021,-400.0,0.00010958,2]
[361009813,1747201835030,-400.0,0.00010958,2]
[361009814,1747201835039,-502.99,0.00010958,2]
[361009815,1747201835049,-495.11,0.00010958,2]
[361009816,1747201835058,-400.0,0.00010958,2]
[361009817,1747201835068,-400.0,0.00010958,2]
[361009818,1747201835077,-400.0,0.00010958,2]
[361009819,1747201835086,-400.0,0.00010958,2]
[361009820,1747201835095,-400.0,0.00010958,2]
[361009821,1747201835104,-633.25,0.00010958,2]
[361009822,1747201835113,-154.65547198,0.00010958,2]
[361009823,1747201835122,-400.0,0.00010958,2]
[361009824,1747201835130,-400.0,0.00010958,2]
[361009825,1747201835139,-370.92757977,0.00010958,2]
[361009826,1747201835158,-463.10242023,0.00010958,2]
[361009827,1747201835167,-975.92,0.00010958,2]
[361009828,1747201835176,-400.0,0.00010958,2]
[361009829,1747201835185,-400.0,0.00010958,2]
[361009830,1747201835194,-400.0,0.00010958,2]
[361009831,1747201835203,-598.83,0.00010958,2]
[361009832,1747201835211,-400.0,0.00010958,2]
[361009833,1747201835220,-514.8200671,0.00010958,2]
[361009834,1747201835229,-855.86564492,0.00010958,2]
[361009835,1747201835241,-706.18435508,0.00010958,2]
[361009836,1747201835250,-402.97746406,0.00010958,2]
[361009837,1747201835259,-400.0,0.00010958,2]
[361009838,1747201835268,-479.27757559,0.00010958,2]
[361009839,1747201835277,-401.29797962,0.00010958,2]
[361009840,1747201835286,-400.0,0.00010958,2]
[361009841,1747201835295,-400.0,0.00010958,2]
[361009842,1747201835304,-400.0,0.00010958,2]
[361009843,1747201835313,-400.0,0.00010958,2]
[361009844,1747201835322,-60.26262565,0.00010958,2]
[361009845,1747201835334,-339.73737435,0.00010958,2]
[361009846,1747201835343,-1052.77,0.00010958,2]
[361009847,1747201835353,-400.0,0.00010958,2]
[361009848,1747201835362,-400.0,0.00010958,2]
[361009849,1747201835371,-400.25753243,0.00010958,2]
[361009850,1747201835380,-400.0,0.00010958,2]
[361009851,1747201835389,-400.0,0.00010958,2]
[361009852,1747201835398,-136.29470927,0.00010958,2]
[361009853,1747201835412,-678.40529073,0.00010958,2]
[361009854,1747201835421,-754.05,0.00010958,2]
[361009855,1747201835430,-400.0,0.00010958,2]
[361009856,1747201835440,-541.80496007,0.00010958,2]
[361009857,1747201835450,-1210.07,0.00010958,2]
[361009858,1747201835459,-888.48,0.00010958,2]
[361009859,1747201835467,-400.0,0.00010958,2]
[361009860,1747201835476,-626.62,0.00010958,2]
[361009861,1747201835485,-400.0,0.00010958,2]
[361009862,1747201835496,-1350.26,0.00010958,2]
[361009863,1747201835505,-400.0,0.00010958,2]
[361009864,1747201835514,-400.0,0.00010958,2]
[361009865,1747201835522,-400.0,0.00010958,2]
[361009866,1747201835531,-400.0,0.00010958,2]
[361009867,1747201835540,-400.0,0.00010958,2]
[361009868,1747201835549,-413.85204187,0.00010958,2]
[361009869,1747201835558,-518.51696423,0.00010958,2]
[361009870,1747201835567,-461.75,0.00010958,2]
[361009871,1747201835576,-337.32321934,0.00010958,2]
[361009872,1747201835603,-367.68678066,0.00010958,2]
[361009873,1747201835612,-400.0,0.00010958,2]
[361009874,1747201835621,-400.0,0.00010958,2]
[361009875,1747201835630,-400.0,0.00010958,2]
[361009876,1747201835639,-400.0,0.00010958,2]
[361009877,1747201835650,-400.0,0.00010958,2]
[361009878,1747201835658,-1038.63,0.00010958,2]
[361009879,1747201835667,-582.35,0.00010958,2]
[361009880,1747201835677,-400.0,0.00010958,2]
[361009881,1747201835686,-127.19585348,0.00010958,2]
[361009882,1747201837904,-1173.16414652,0.00010958,2]
[361009883,1747201837914,-400.0,0.00010958,2]
[361009884,1747201837923,-400.0,0.00010958,2]
[361009885,1747201837932,-400.0,0.00010958,2]
[361009886,1747201837942,-3410.97,0.00010958,2]
[361009887,1747201837951,-2.16894897,0.00010958,2]
[361009888,1747201837963,-397.83105103,0.00010958,2]
[361009889,1747201837972,-400.0,0.00010958,2]
[361009890,1747201837981,-626.43,0.00010958,2]
[361009891,1747201837990,-400.0,0.00010958,2]
[361009892,1747201838000,-455.62,0.00010958,2]
[361009893,1747201838009,-401.79484809,0.00010958,2]
[361009894,1747201838019,-494.2,0.00010958,2]
[361009895,1747201838028,-400.0,0.00010958,2]
[361009896,1747201838038,-507.43,0.00010958,2]
[361009897,1747201838047,-400.0,0.00010958,2]
[361009898,1747201838056,-621.73,0.00010958,2]
[361009899,1747201838236,-400.0,0.00010958,2]
[361009900,1747201838246,-650.68,0.00010958,2]
[361009901,1747201838256,-400.0,0.00010958,2]
[361009902,1747201838265,-400.0,0.00010958,2]
[361009903,1747201838274,-400.0,0.00010958,2]
[361009904,1747201838284,-400.0,0.00010958,2]
[361009905,1747201838293,-1514.2,0.00010958,2]
[361009906,1747201838304,-400.0,0.00010958,2]
[361009907,1747201838315,-400.0,0.00010958,2]
[361009908,1747201838325,-400.0,0.00010958,2]
[361009909,1747201838335,-400.0,0.00010958,2]
[361009910,1747201838346,-320.11194565,0.00010958,2]
[361009911,1747201838355,-519.4,0.00010958,2]
[361009912,1747201838364,-902.77,0.00010958,2]
[361009913,1747201838373,-1346.48,0.00010958,2]
[361009914,1747201838384,-291.48423579,0.00010958,2]
[361009915,1747201838393,-400.0,0.00010958,2]
[361009917,1747201838403,-423.12822437,0.00010958,2]
[361009918,1747201838414,-416.49818591,0.00010958,2]
[361009919,1747201838423,-400.0,0.00010958,2]
[361009920,1747201838432,-1339.62,0.00010958,2]
[361009921,1747201838441,-823.37,0.00010958,2]
[361009922,1747201838454,-889.15,0.00010958,2]
[361009923,1747201838463,-530.05,0.00010958,2]
[361009924,1747201838475,-2601.55,0.00010958,2]
[361009925,1747201838485,-400.0,0.00010958,2]
[361009926,1747201838497,-400.0,0.00010958,2]
[361009927,1747201838507,-400.0,0.00010958,2]
[361009928,1747201838516,-574.49,0.00010958,2]
[361009929,1747201838526,-400.0,0.00010958,2]
[361009930,1747201838536,-400.0,0.00010958,2]
[361009931,1747201838546,-400.0,0.00010958,2]
[361009932,1747201838555,-400.0,0.00010958,2]
[361009933,1747201838565,-454.78,0.00010958,2]
[361009934,1747201838575,-400.0,0.00010958,2]
[361009935,1747201838584,-917.53,0.00010958,2]
[361009936,1747201838594,-400.0,0.00010958,2]
[361009937,1747201838604,-675.79,0.00010958,2]
[361009938,1747201838614,-400.0,0.00010958,2]
[361009939,1747201838623,-547.79,0.00010958,2]
[361009940,1747201838633,-400.0,0.00010958,2]
[361009941,1747201838643,-400.0,0.00010958,2]
[361009942,1747201838654,-400.0,0.00010958,2]
[361009943,1747201838664,-437.4919543,0.00010958,2]
[361009944,1747201838677,-400.0,0.00010958,2]
[361009945,1747201838687,-1747.3,0.00010958,2]
[361009946,1747201838696,-400.0,0.00010958,2]
[361009947,1747201838706,-441.17,0.00010958,2]
[361009948,1747201838715,-1428.6,0.00010958,2]
[361009949,1747201838723,-268.34258707,0.00010958,2]
[361009950,1747201838732,-400.0,0.00010958,2]
[361009951,1747201838740,-400.0,0.00010958,2]
[361009952,1747201838749,-887.03,0.00010958,2]
[361009953,1747201838757,-400.0,0.00010958,2]
[361009954,1747201838765,-400.0,0.00010958,2]
[361009955,1747201838773,-400.0,0.00010958,2]
[361009956,1747201838781,-1515.46,0.00010958,2]
[361009957,1747201838789,-465.46,0.00010958,2]
[361009958,1747201838798,-932.47,0.00010958,2]
[361009959,1747201838806,-473.22,0.00010958,2]
[361009960,1747201838815,-400.0,0.00010958,2]
[361009961,1747201838825,-400.0,0.00010958,2]
[361009962,1747201838834,-400.0,0.00010958,2]
[361009963,1747201838844,-895.61,0.00010958,2]
[361009964,1747201838853,-400.0,0.00010958,2]
[361009965,1747201838863,-400.0,0.00010958,2]
[361009966,1747201838872,-553.73,0.00010958,2]
[361009967,1747201838882,-400.0,0.00010958,2]
[361009968,1747201838891,-400.0,0.00010958,2]
[361009969,1747201838900,-400.0,0.00010958,2]
[361009970,1747201838910,-400.0,0.00010958,2]
[361009971,1747201838919,-400.0,0.00010958,2]
[361009972,1747201838928,-7297.205655,0.00010958,2]
[361009973,1747201838938,-7297.205655,0.00010958,2]
[361009974,1747201838948,-1106.55,0.00010958,2]
[361009975,1747201838958,-7297.205655,0.00010958,2]
[361009976,1747201838967,-400.0,0.00010958,2]
[361009977,1747201838977,-417.3,0.00010958,2]
[361009978,1747201838986,-400.0,0.00010958,2]
[361009979,1747201838996,-1807.591652,0.00010958,2]
[361009980,1747201839005,-1807.591652,0.00010958,2]
[361009981,1747201839016,-1807.591652,0.00010958,2]
[361009982,1747201839025,-400.0,0.00010958,2]
[361009983,1747201839035,-400.0,0.00010958,2]
[361009984,1747201839044,-400.0,0.00010958,2]
[361009985,1747201839054,-1276.04,0.00010958,2]
[361009986,1747201839064,-400.0,0.00010958,2]
[361009987,1747201839074,-400.0,0.00010958,2]
[361009988,1747201839083,-451.23,0.00010958,2]
[361009989,1747201839093,-587.62,0.00010958,2]
[361009990,1747201839104,-400.0,0.00010958,2]
[361009991,1747201839115,-400.0,0.00010958,2]
[361009992,1747201839125,-1023.75,0.00010958,2]
[361009993,1747201839134,-913.48,0.00010958,2]
[361009994,1747201839144,-400.0,0.00010958,2]
[361009995,1747201839153,-719.55,0.00010958,2]
[361009996,1747201839163,-400.0,0.00010958,2]
[361009997,1747201839172,-1273.56,0.00010958,2]
[361009998,1747201839183,-400.0,0.00010958,2]
[361009999,1747201839192,-400.0,0.00010958,2]
[361010000,1747201839202,-503.26,0.00010958,2]
[361010001,1747201839211,-438.68,0.00010958,2]
[361010002,1747201839220,-1840.56,0.00010958,2]
[361010003,1747201839229,-1112.2,0.00010958,2]
[361010004,1747201839239,-1034.58,0.00010958,2]
[361010005,1747201839248,-400.0,0.00010958,2]
[361010006,1747201839255,-709.83,0.00010958,2]
[361010007,1747201839264,-733.56,0.00010958,2]
[361010008,1747201839272,-400.0,0.00010958,2]
[361010009,1747201839280,-3774.37,0.00010958,2]
[361010010,1747201839289,-400.0,0.00010958,2]
[361010011,1747201839297,-400.0,0.00010958,2]
[361010012,1747201839306,-407.44,0.00010958,2]
[361010013,1747201839314,-972.86,0.00010958,2]
[361010014,1747201839324,-400.0,0.00010958,2]
[361010015,1747201839333,-502.15448481,0.00010958,2]
[361010016,1747201839343,-495.03,0.00010958,2]
[361010017,1747201839352,-400.0,0.00010958,2]
[361010018,1747201839362,-1736.98,0.00010958,2]
[361010019,1747201839373,-400.0,0.00010958,2]
[361010020,1747201839383,-836.61,0.00010958,2]
[361010021,1747201839393,-1531.93,0.00010958,2]
[361010022,1747201839404,-401.13736521,0.00010958,2]
[361010023,1747201839419,-632.08,0.00010958,2]
[361010024,1747201839428,-522.36715684,0.00010958,2]
[361010025,1747201839438,-400.0,0.00010958,2]
[361010026,1747201839449,-639.88,0.00010958,2]
[361010027,1747201839460,-400.0,0.00010958,2]
[361010028,1747201839469,-695.31,0.00010958,2]
[361010029,1747201839479,-400.0,0.00010958,2]
[361010030,1747201839490,-591.74,0.00010958,2]
[361010031,1747201839501,-1344.31,0.00010958,2]
[361010032,1747201839511,-400.0,0.00010958,2]
[361010033,1747201839520,-400.0,0.00010958,2]
[361010034,1747201839530,-400.0,0.00010958,2]
[361010035,1747201839540,-347.16459795,0.00010958,2]